Cogmind - Beta 13 @@@ ROGUE MODE // 2024.04.20 @ 15:55:59 Player: Mantreise Result: Destroyed by P-60 Hacker with Shock Rifle Performance ------------- Evolutions (3) 1500 Regions Visited (6) 1200 Robots Destroyed (36) 180 Value Destroyed (1174) 1174 Prototype IDs (7) 140 Alien Tech Used (0) 0 Bonus (487) 487 TOTAL SCORE: 4681 Bonus ------- High Alert Combat Kills 102 Follower Combat Kills 385 Cogmind --------- Core Integrity 0/700 Matter 258/300 Energy 90/125 System Corruption 4% Temperature Cool (0) Movement Core (100) Ox1 Location -7/Factory Parts ------- > --- POWER (2) -------- Light Ion Engine > --- PROPULSION (4) --- (None) > --- UTILITY (5) ------ Improved Signal Interpreter Improved Terrain Scanner System Shield > --- WEAPON (2) ------- (None) > --- INVENTORY (5) ---- (None) Peak State ------------ > --- POWER ------------ Improved Ion Engine Deuterium Engine > --- PROPULSION ------- Aluminum Leg Carbon-fiber Leg Carbon-fiber Leg Titanium Leg > --- UTILITY ---------- Experimental Sensor Array Improved Signal Interpreter Splice Drone Bay > --- WEAPON ----------- Precision Shock Rifle Precision Shock Rifle > --- INVENTORY -------- Improved Terrain Scanner Improved Terrain Scan Processor Medium Reactive Plating Grenade Launcher [Rating: 45] Favorites ----------- Power Ion Engine Engine Ion Engine Propulsion Aluminum Leg Leg Aluminum Leg Wheel Armored Huge Wheel Utility Experimental Sensor Array Device Experimental Sensor Array Processor Improved Signal Interpreter Hackware System Shield Protection Medium Reactive Plating Weapon Spread Laser Energy Gun Spread Laser Ballistic Gun Gauss Rifle Launcher Grenade Launcher Build | -11 -10 -10 -9 -9 -8 -7 ------- Run | Yrd Mat Min Mat Sto Mat Fac Slots Evolved 6 | . . . 2 . 2 2 Power 1 | . . . 1 . . . Propulsion 2 | . . . . . 2 . Utility 3 | . . . 1 . . 2 Weapon . | . . . . . . . Parts Attached 63 | 6 4 8 2 16 17 10 Power 8 | 1 . 1 . 2 2 2 Engine 8 | 1 . 1 . 2 2 2 Core . | . . . . . . . Reactor . | . . . . . . . Propulsion 15 | 2 . 1 . 5 6 1 Treads . | . . . . . . . Leg 14 | 2 . 1 . 5 6 . Wheel 1 | . . . . . . 1 Hover . | . . . . . . . Flight . | . . . . . . . Utility 22 | 1 . 2 2 6 6 5 Device 18 | 1 . 2 2 6 4 3 Storage . | . . . . . . . Processor 2 | . . . . . 1 1 Hackware 1 | . . . . . . 1 Protection 1 | . . . . . 1 . Artifact . | . . . . . . . Weapon 18 | 2 4 4 . 3 3 2 Energy Gun 15 | 2 4 3 . 3 3 . Energy Cannon . | . . . . . . . Ballistic Gun 1 | . . . . . . 1 Ballistic Cannon . | . . . . . . . Launcher 2 | . . 1 . . . 1 Special Weapon . | . . . . . . . Impact Weapon . | . . . . . . . Slashing Weapon . | . . . . . . . Piercing Weapon . | . . . . . . . Special Melee Weapon . | . . . . . . . Unidentified Prototypes 5 | . . 2 . 2 1 . Corrupted Parts 4 | . 1 . . . 3 . System Corruption 19 | . 5 . . . 14 . Parts Lost 21 | . 2 . 2 1 5 11 Power 4 | . . . 1 . 3 . Propulsion 7 | . . . 1 1 1 4 Utility 4 | . . . . . . 4 Weapon 6 | . 2 . . . 1 3 Highest Loss Streak 5 | . 2 . 2 1 3 5 To Critical Strikes . | . . . . . . . Average Slot Usage (%) 86 | . 82 96 80 86 96 52 Engine 11 | . 14 14 8 12 15 . Leg 25 | . 28 28 18 18 35 13 Device 22 | . 14 24 31 32 17 10 Processor 3 | . . . . . 8 13 Energy Gun 20 | . 25 27 22 22 17 2 Naked Turns . | . . . . . . . Heaviest Build 45 | 10 12 20 21 23 45 33 Greatest Support 47 | 20 20 20 20 20 47 42 Greatest Overweight (x) 8 | . . . 1 1 1 8 Average Overweight (x) . | . . . . . . . Largest Inventory Capacity 5 | 5 5 5 5 5 5 5 Average Capacity 5 | 5 5 5 5 5 5 5 Most Carried 5 | 2 4 5 5 5 5 3 Average Carried 3 | . 1 3 3 4 4 1 Final Capacity 5 | 5 5 5 5 5 5 5 Final Carried 5 | 1 4 3 4 5 4 . Class Distribution -------------------- 62% | Mutant 29% | Scavenger-Mutant 8% | Commander-Mutant Dominant Class ---------------- Mutant | -10/Materials Mutant | -10/Mines Mutant | -9/Materials Commander-Mutant | -9/Storage Scavenger-Mutant | -8/Materials Mutant | -7/Factory Resources | -11 -10 -10 -9 -9 -8 -7 ----------- Run | Yrd Mat Min Mat Sto Mat Fac Matter Collected 874 | 259 21 184 39 145 196 30 Remotely . | . . . . . . . Salvage Created 1286 | 98 96 148 162 84 641 57 Parts 73 | 9 6 10 7 9 30 2 Haulers Intercepted 1 | . . . . 1 . . Recyclers Shooed 1 | 1 . . . . . . Parts Field Recycled . | . . . . . . . Retrieved Matter . | . . . . . . . Parts Self-Destructed . | . . . . . . . Prevented . | . . . . . . . Kills | -11 -10 -10 -9 -9 -8 -7 ------- Run | Yrd Mat Min Mat Sto Mat Fac Combat Hostiles Destroyed 30 | . 2 7 4 2 13 2 Guns 23 | . 2 4 4 2 10 1 AOE 5 | . . 3 . . 1 1 Classes Destroyed 7 | 2 1 2 1 1 . . Builder 1 | . . 1 . . . . Tunneler 3 | 2 . 1 . . . . Hauler 1 | . . . . 1 . . Recycler 1 | 1 . . . . . . Swarmer 7 | . . 3 . . 3 1 Grunt 20 | . 2 4 2 2 9 1 Sentry 3 | . . . 2 . 1 . Best Kill Streak 7 | 3 1 3 4 1 7 1 Combat Bots Only 7 | . 1 3 4 1 7 1 Max Kills in Single Turn 3 | 1 1 3 1 1 1 1 Gunslinging . | . . . . . . . Exploded 3 | . . 3 . . 1 1 Melee . | . . . . . . . Uniques/NPCs Destroyed . | . . . . . . . Combat | -11 -10 -10 -9 -9 -8 -7 -------- Run | Yrd Mat Min Mat Sto Mat Fac Hostile Shots Fired 431 | . 24 21 33 47 124 182 Missed 142 | . 6 9 12 16 40 59 Damage Taken 3728 | 40 247 161 312 351 1086 1531 Core 1088 | 20 67 55 62 110 70 704 Absorbed by Shields . | . . . . . . . Ignored by Resistances 90 | . . . . . 88 2 Core Remaining (%) 69 | 92 . 43 . 57 87 . Volleys Fired 97 | 5 15 16 10 12 30 9 Largest 2 | 2 2 2 2 2 2 1 Hottest 130 | 80 80 130 130 130 110 30 Shots Fired 183 | 10 24 32 20 24 64 9 Gun 181 | 10 24 31 20 24 64 8 Cannon . | . . . . . . . Launcher 2 | . . 1 . . . 1 Special . | . . . . . . . Kinetic 8 | . . . . . . 8 Thermal 78 | . 5 31 20 22 . . Explosive 2 | . . 1 . . . 1 Electromagnetic 95 | 10 19 . . 2 64 . Robot Hit Streak 21 | 5 4 6 10 16 21 4 Robot Miss Streak 7 | 1 4 7 6 3 4 2 Penetration Max . | . . . . . . . Secondary Targets 7 | . . . 4 . 3 . Max Gunslinging Chain 1 | . . . 1 . 1 . Shots Hit Robots 140 | 8 13 29 20 17 47 6 Core Hits 111 | 3 5 34 28 13 24 4 Critical Kills . | . . . . . . . Critical Parts Destroyed . | . . . . . . . Critical Strikes 1 | . . . . . 1 . Corrupt 1 | . . . . . 1 . Melee Attacks . | . . . . . . . Impact . | . . . . . . . Slashing . | . . . . . . . Piercing . | . . . . . . . Sneak Attacks . | . . . . . . . Combat Hostiles . | . . . . . . . Follow-up Attacks . | . . . . . . . Damage Inflicted 2630 | 129 170 482 258 290 1037 264 Guns 2169 | 92 170 324 258 290 931 104 Cannons . | . . . . . . . Explosions 446 | 37 . 158 . . 106 145 Melee . | . . . . . . . Ramming 15 | . . . . . . 15 Kinetic 104 | . . . . . . 104 Thermal 1038 | 37 34 324 258 279 106 . Explosive 303 | . . 158 . . . 145 Electromagnetic 1170 | 92 136 . . 11 931 . Impact . | . . . . . . . Slashing . | . . . . . . . Piercing . | . . . . . . . Highest Corruption 16 | . 5 5 . . 16 4 Average Corruption 6 | . 5 5 . . 10 2 Corruption Purged . | . . . . . . . Corruption Blocked . | . . . . . . . Effects 49 | . . 25 . . 23 1 Message Errors 12 | . . 6 . . 5 1 Matter Fused 14 | . . 8 . . 6 . Heat Flow Errors 5 | . . 3 . . 2 . Energy Discharges 3 | . . 1 . . 2 . Data Loss (minor) 8 | . . 4 . . 4 . Data Loss (major) 1 | . . 1 . . . . Misfires 5 | . . 1 . . 4 . Alerts 1 | . . 1 . . . . Overload Shots . | . . . . . . . Overflow Damage 7 | 7 . . . . . . Projectiles . | . . . . . . . Explosions 7 | 7 . . . . . . Melee . | . . . . . . . Knockbacks . | . . . . . . . Impact . | . . . . . . . Kinetic . | . . . . . . . Secondary . | . . . . . . . Self-Inflicted Damage 79 | 40 . . . . . 39 Shots 2 | 1 . . . . . 1 Rammed 3 | . . . . . . 3 Targets Rammed 4 | . . . . . . 4 Kicked 1 | . . . . . . 1 Crushed . | . . . . . . . Highest Temperature 503 | 66 144 503 423 21 434 . Average Temperature 151 | 26 62 218 228 8 125 . Received Heat Transfer 1326 | . 147 105 129 99 522 324 Effects 11 | . . 5 1 . 5 . Shutdowns 3 | . . 2 . . 1 . Energy Bleed 2 | . . . . . 2 . Interference 3 | . . . 1 . 2 . Matter Decay 1 | . . 1 . . . . Damage (major) 2 | . . 2 . . . . Siege Activations . | . . . . . . . Robots Corrupted 2 | . . . . . 2 . Combat Hostiles 2 | . . . . . 2 . Parts Fried 2 | . . . . . 2 . Impact Corruptions . | . . . . . . . Robots Melted . | . . . . . . . Combat Hostiles . | . . . . . . . Parts Melted 1 | . . 1 . . . . Heat Transferred 1375 | 50 75 410 325 415 100 . Parts Sabotaged . | . . . . . . . Parts Stolen . | . . . . . . . Parts Stripped . | . . . . . . . Power Chain Reactions 2 | 1 . . . . 1 . Alert | -11 -10 -10 -9 -9 -8 -7 ------- Run | Yrd Mat Min Mat Sto Mat Fac Peak Influence 600 | 15 69 329 324 407 600 175 Initial 175 | . 9 26 31 136 118 175 Average 210 | 4 47 175 139 241 429 49 Maximum Alert Level 2 | . . 1 1 2 2 . Low Security (%) 57 | 100 100 76 63 26 9 100 Level 1 26 | . . 23 36 68 19 . Level 2 16 | . . . . 5 70 . Level 3 . | . . . . . . . Level 4 . | . . . . . . . Level 5 . | . . . . . . . High Security . | . . . . . . . Max Security . | . . . . . . . Squads Dispatched 11 | . . . 1 5 4 1 Investigation 6 | . . . . 2 4 . Extermination . | . . . . . . . Reinforcement 2 | . . . 1 . . 1 Assault . | . . . . . . . Garrison 3 | . . . . 3 . . Intercept . | . . . . . . . Searches Triggered . | . . . . . . . Construction Impeded . | . . . . . . . Haulers Reinforced . | . . . . . . . Active Scanning Responses . | . . . . . . . Cargo Convoy Interrupts . | . . . . . . . Stealth | -11 -10 -10 -9 -9 -8 -7 --------- Run | Yrd Mat Min Mat Sto Mat Fac Distress Signals 7 | . . . 2 2 2 1 Communications Jammed . | . . . . . . . Distress Signals . | . . . . . . . Times Spotted 91 | . 3 11 11 18 28 20 Peak Tracking Total 10 | . 3 3 10 7 7 10 Tactical Retreats 17 | . . 2 3 2 7 3 Traps | -11 -10 -10 -9 -9 -8 -7 ------- Run | Yrd Mat Min Mat Sto Mat Fac Traps Triggered 1 | . . . . . 1 . Indirectly . | . . . . . . . Trap Hack Attempts . | . . . . . . . Triggered . | . . . . . . . Disarmed . | . . . . . . . Reprogrammed . | . . . . . . . Reused . | . . . . . . . Traps Extracted . | . . . . . . . Installed . | . . . . . . . Triggered 1 | . . 1 . . . . Machines | -11 -10 -10 -9 -9 -8 -7 ---------- Run | Yrd Mat Min Mat Sto Mat Fac Machines Disabled 4 | . 1 2 . . 1 . Max in Single Turn 1 | . 1 1 . . 1 . Machines Repaired . | . . . . . . . Machines Dismantled . | . . . . . . . Machines Sabotaged . | . . . . . . . Overloaded Fab Kills . | . . . . . . . Hacking | -11 -10 -10 -9 -9 -8 -7 --------- Run | Yrd Mat Min Mat Sto Mat Fac Machines Accessed 14 | . 3 1 1 4 3 2 Terminals 8 | . 2 . 1 2 2 1 Fabricators 1 | . . . . . . 1 Repair Stations 1 | . . . . . 1 . Recycling Units 3 | . 1 . . 2 . . Scanalyzers . | . . . . . . . Garrison Access . | . . . . . . . Total Hacks 40 | . 9 1 2 14 10 4 Successful 13 | . 1 1 . 5 4 2 Failed 27 | . 8 . 2 9 6 2 Catastrophic 4 | . 1 . . . 3 . Database Lockouts . | . . . . . . . Manual 17 | . 5 . 2 6 4 . Terminals 20 | . 5 . 2 5 6 2 Fabricators 2 | . . . . . . 2 Repair Stations 4 | . . . . . 4 . Recycling Units 13 | . 4 . . 9 . . Scanalyzers . | . . . . . . . Garrison Access . | . . . . . . . Terminal Hacks 4 | . . 1 . . 2 1 Prototype ID Bank 1 | . . . . . 1 . Open Door 1 | . . 1 . . . . Unreport Threat 1 | . . . . . . 1 Hauler Manifests 1 | . . . . . 1 . Fabricator Hacks 1 | . . . . . . 1 Network Status 1 | . . . . . . 1 Repair Station Hacks 1 | . . . . . 1 . Scan Component 1 | . . . . . 1 . Recycling Unit Hacks 3 | . 1 . . 2 . . Report Inventory 2 | . 1 . . 1 . . Retrieve Components 1 | . . . . 1 . . Scanalyzer . | . . . . . . . Garrison Access Hacks . | . . . . . . . Unauthorized Hacks 4 | . . . . 3 1 . Terminals 3 | . . . . 2 1 . Botnet 3 | . . . . 2 1 . Fabricators . | . . . . . . . Repair Stations . | . . . . . . . Recycling Units 1 | . . . . 1 . . Reject 1 | . . . . 1 . . Scanalyzers . | . . . . . . . Garrison Access . | . . . . . . . Data Cores Recovered . | . . . . . . . Used . | . . . . . . . Hacking Detections 12 | . 3 . 1 4 3 1 Full Trace Events 8 | . 2 . 1 2 3 . Feedback Events 2 | . . . . . 2 . Corruption 2 | . . . . . 2 . Feedback Blocked . | . . . . . . . Robot Schematics Acquired . | . . . . . . . Robots Built . | . . . . . . . Authchips . | . . . . . . . Time . | . . . . . . . Total Robot Build Rating . | . . . . . . . Part Schematics Acquired . | . . . . . . . Parts Built . | . . . . . . . Authchips . | . . . . . . . Time . | . . . . . . . Total Part Build Rating . | . . . . . . . Parts Repaired . | . . . . . . . Time . | . . . . . . . Parts Recycled . | . . . . . . . Recycled Matter . | . . . . . . . Retrieved Matter . | . . . . . . . Retrieved Components 6 | . . . . 6 . . Parts Scanalyzed . | . . . . . . . Part Schematics Acquired . | . . . . . . . Parts Damaged . | . . . . . . . Bothacking | -11 -10 -10 -9 -9 -8 -7 ------------ Run | Yrd Mat Min Mat Sto Mat Fac Used RIF Installer . | . . . . . . . Robots Hacked . | . . . . . . . Non-combat . | . . . . . . . Combat . | . . . . . . . Robot Hacks Applied . | . . . . . . . Relay Couplers Released . | . . . . . . . Fabnet Peak Effective % . | . . . . . . . Robots Rewired . | . . . . . . . Allies Hacked . | . . . . . . . Hacks Repelled . | . . . . . . . Allies | -11 -10 -10 -9 -9 -8 -7 -------- Run | Yrd Mat Min Mat Sto Mat Fac Total Allies 24 | . . 4 3 13 2 2 Largest Group 10 | . . 3 2 10 5 1 Highest-Rated Group 88 | . . 40 18 88 48 24 Highest-Rated Ally 24 | . . 16 10 16 16 24 Total Orders 15 | . . 6 2 3 3 1 ROAM 10 | . . 4 2 2 1 1 FOLLOW 1 | . . 1 . . . . GUARD 2 | . . . . 1 1 . EXPLORE 1 | . . . . . 1 . RETURN 1 | . . 1 . . . . Ally Attacks 173 | . . 13 17 70 58 15 Total Damage 1420 | . . 114 123 599 436 148 Kills 27 | . . 6 2 11 8 . Allies Corrupted . | . . . . . . . Allies Melted . | . . . . . . . Intel | -11 -10 -10 -9 -9 -8 -7 ------- Run | Yrd Mat Min Mat Sto Mat Fac Robot Analysis Total . | . . . . . . . Derelict Logs Recovered 3 | . . 3 . . . . Drone Launches 51 | . . 6 12 14 12 7 Drone Recoveries 51 | . . 6 12 14 12 7 Exploration | -11 -10 -10 -9 -9 -8 -7 ------------- Run | Yrd Mat Min Mat Sto Mat Fac Turns Passed 3687 | 122 292 1128 186 703 802 454 Spaces Moved 2015 | 85 190 611 78 316 484 251 Core 116 | 11 . . . . . 105 Treads . | . . . . . . . Legs 1863 | 74 190 611 78 316 484 110 Wheels 36 | . . . . . . 36 Hover . | . . . . . . . Flight . | . . . . . . . Fastest Speed 50 | 50 120 120 120 120 120 50 Average Speed 129 | 110 120 120 149 162 126 123 Slowest Speed 450 | 120 120 120 190 190 193 450 Overloaded Moves . | . . . . . . . Propulsion Burnouts . | . . . . . . . Robots Hopped . | . . . . . . . Cave-ins Triggered . | . . . . . . . Exploration Rate (%) 38 | 6 45 88 25 44 53 11 Regions Visited 6 Branch Regions 2 Pre-discovered Areas 3 | . . 3 . . . . Known Exits Taken 2 | . . . 1 . 1 . Unknown Exits Taken 4 | 1 1 1 . 1 . . Scrap Searched 1 | . . 1 . . . . Spaces Dug 4 | . . . . . . 4 Terrain Destroyed 22 | 7 . 7 . . 4 4 Melee . | . . . . . . . Projectile . | . . . . . . . AOE 22 | 7 . 7 . . 4 4 Terrain Rammed . | . . . . . . . Walls Destroyed . | . . . . . . . Machines Disabled . | . . . . . . . Actions | -11 -10 -10 -9 -9 -8 -7 --------- Run | Yrd Mat Min Mat Sto Mat Fac Total 2922 | 102 231 974 128 482 619 386 Wait 663 | . 14 331 34 119 61 104 Move 2009 | 84 189 610 77 315 483 251 Hop . | . . . . . . . Pick Up 53 | 7 7 4 3 11 16 5 Fast Attach . | . . . . . . . Attach 40 | 6 4 2 2 6 10 10 Detach 6 | . . 1 1 2 1 1 Swap 23 | . . 6 . 10 7 . Drop 26 | . 2 4 1 6 11 2 Fire 97 | 5 15 16 10 12 30 9 Melee . | . . . . . . . Ram 3 | . . . . . . 3 Kick 1 | . . . . . . 1 Crush . | . . . . . . . Escape Stasis . | . . . . . . . Rewire 1 | . . . . 1 . . Trap . | . . . . . . . Miscellaneous . | . . . . . . . Route ------- -11/Scrapyard -10/Materials (discovered 2 exits: *Mat / *Min) -10/Mines -9/Materials (discovered 2 exits: [*Min] / *Sto) -9/Storage -8/Materials -7/Factory History --------- Turn | Location | Event 3 | -11/Scrapyard | Discovered new exit (range 15) 123 | -11/Scrapyard | Entered Materials 311 | -10/Materials | Build established: Mutant 317 | -10/Materials | Discovered new exit (range 11) 365 | -10/Materials | Discovered new exit (range 5) 415 | -10/Materials | Entered Mines 481 | -10/Mines | Found the Drone Emporium 492 | -10/Mines | Found Prototype Device 493 | -10/Mines | Identified Splice Drone Bay 543 | -10/Mines | Discovered new exit (range 57) 619 | -10/Mines | Core integrity fell below 50% 661 | -10/Mines | Assisted by bots powering up and referring to "LRC-V3" 788 | -10/Mines | Found a damaged Exp. Sensor Array with a note attached 794 | -10/Mines | Found Prototype Device 795 | -10/Mines | Identified Exp. Sensor Array 814 | -10/Mines | Learned location of Recycling (-9) 1032 | -10/Mines | Learned 2 Materials zone layouts 1034 | -10/Mines | Learned location of Storage (-9) 1543 | -10/Mines | Entered Materials 1543 | -9/Materials | Accompanied by 1 ally 1543 | -9/Materials | Evolved 2 slots: Power x1, Utility x1 1544 | -9/Materials | Identified exit to Storage 1571 | -9/Materials | Discovered new exit (range 58) 1729 | -9/Materials | Entered Storage 1894 | -9/Storage | Garrison activated, responded to threat 1998 | -9/Storage | Assisted by bots powering up and referring to "LRC-V3" 2302 | -9/Storage | Build established: Commander-Mutant 2323 | -9/Storage | Discovered new exit (range 15) 2346 | -9/Storage | Lost 3 allies 2432 | -9/Storage | Entered Materials 2432 | -8/Materials | Accompanied by 5 allies 2432 | -8/Materials | Evolved 2 slots: Propulsion x2 2609 | -8/Materials | Build established: Scavenger-Mutant 2730 | -8/Materials | System corruption reached 10% 2736 | -8/Materials | Destroyed 7 combat bots 3213 | -8/Materials | Discovered new exit (range 16) 3233 | -8/Materials | Identified exit to Factory 3234 | -8/Materials | Entered Factory 3234 | -7/Factory | Evolved 2 slots: Utility x2 3253 | -7/Factory | Lost 3 parts (2p1w) 3542 | -7/Factory | Lost 3 parts (2n1u) 3614 | -7/Factory | Core integrity fell below 50% 3629 | -7/Factory | Lost 5 parts (3u2w) 3659 | -7/Factory | Core integrity fell below 20% 3688 | -7/Factory | Destroyed by P-60 Hacker with Shock Rifle Last Messages --------------- S-27 Virus destroyed. Imp. Terrain Scan Processor destroyed. Grenade Launcher destroyed. Acquired Arm. Huge Wheel. W-25 Informer sends out distress signal. VG,6OCOAIY2W/M &AE,>IHR=9Q9YAXYP0 Arm. Huge Wheel destroyed. Slammed into U-05 Engineer. Acquired Unknown Engine. Identified Imp. Deuterium Engine. Dropped Imp. Deuterium Engine. R-06 Scavenger collects Imp. Deuterium Engine. P-60 Hacker resets K-01 Serf, system corruption cleaned. Slammed into K-01 Serf. Destabilizing: System interference. Imp. Signal Interpreter temporarily disabled. K-01 Serf destroyed. Acquired 30 matter. Acquired Lgt. Ion Engine. S-27 Virus destroyed. Map ----- +----------------------------------------------------+ | ?????????????????????????????????????????????????? | | ?????????????????????????????????????????????????? | | ?????????????????????????????????????????????????? | | ?????????????????????????????????????????????????? | | ?????????????????????????????????????????????????? | | ?????????????????????????????????????????????????? | | ?????????????????????????????????????????????????? | | ?????????????????????????????????????????????????? | | ?????????????????????????????????????????????????? | | ?????????????????????????????????????????????????? | | ?????????????????????????????????????????????????? | | ?????????????????????????????????????????????????? | | ?????????????????????????????????? ????????????? | | ?????????????????????????????????? ""??????????? | | ?????????????????????????????????? ?????????? | | ????????????????????????? ???????# ?????????? | | ?????????????????????????????????# #?????????? | | ?????????????????????????????????# #?????????? | | ?????????????????????????????????# #?????????? | | ?????????????????????????????????# #?????????? | | ?????????????????????????????????# #?????????? | | ?????????????????????????????????# #?????????? | | ???????????????????#?????????????# #?????????? | | ?????????????????????????????????# #?????????? | | ????????????##################+### #?????????? | | ????????????# @ #?????????? | | ????????? ??# #?????????? | | ????????? ??# +?????????? | | ????????????# p #?????????? | | ????????????# s%p m #?????????? | | ????????????# ^^ ###########/######r###?????????? | | ????????????# ??#??# # #???????????? | | ????????????# ???????# # #???????????? | | ????????????# ????????# """" """" #/############# | | ??????????????????????# """" """" # | | ??????????????????????# """" """" # [ | | ??????????????????????# """" """" # """"" | | ??????????????????????# ??""" """??# [[* """"" | | ??????????????????????????""" ""???# [[* """"" | | ???????????????????????????? ????# [ """"" | | ???????????????????????????? ????# | | ???????????????????????????? ????#######/####### | | ???????????????????????????? ????????# #???? | | ????????????????????????????###????????# #???? | | ???????????????????????????????????????# #???? | | ????????????????????#################### #???? | | ????????????????????# ! + #???? | | ????????????????????# # #???? | | ????????????????????# """"""""" # #???? | | ????????????????????# ! ! # #???? | +----------------------------------------------------+ Best States ------------- Heat Dissipation 59 Energy Generation 21 Energy Capacity 440 Matter Stores 300 Matter Capacity 300 Sight Range 16 Robot Scan Range 20 Terrain Scan Range 16 Terrain Scan Density 110 Armor Coverage 225 Resistance: KI 30 Evasion (%) 55 Defensive Hacking 10 Item Schematics ----------------- None Robot Schematics ------------------ None Fabricated ------------ Nothing Alien Tech Used ----------------- None Achievements -------------- None Challenges ------------ None Game ------ Seed CompactDamperScythe Manual? 0 Play Time 00:45:12 Cumulative 22.3 hours Start 2024.04.20 @ 15:10:30 End 2024.04.20 @ 15:55:59 Sessions 1 Manual Loads 0 Difficulty Rogue Special Mode None Game No. 30 Rogue 28 Adventurer 2 Explorer 0 Win Type - Total 0 Types 0/0/0/0/0/0/0/0/0 Lore% 22 Gallery% 29 Achievement% 24 Wizard Run 0 Options --------- Layout 0 ASCII 0 Keyboard 0 Movement Numpad Keybinds 0 Fullscreen 2 Font 18/Smallcaps Map View 38x25 Zoom Use 83% Tactical HUD 0 Map Filters NONE Filters NONE Steam 1 RUN: aa4c83e0-a1c8-414c-bf9c-3f606700e465